[Event "40th Cappelle Open 2024"]
[Site "Cappelle-la-Grande"]
[Date "2024.03.07"]
[Round "8.1"]
[White "Lamard, Guillaume"]
[Black "Barp, Alberto"]
[Result "0-1"]
[ECO "C78"]
[WhiteElo "2483"]
[BlackElo "2449"]
[Annotator "TA"]
[PlyCount "119"]
[EventDate "2024.03.02"]
[EventType "swiss"]
[EventCountry "FRA"]
[SourceTitle "playchess.com"]
[Source "ChessBase"]
[SourceQuality "1"]
[TimeControl "40/5400+30:1800+30"]

{[%evp 37,119,49,47,45,52,62,53,56,48,71,60,56,87,80,87,61,80,-83,-83,-72,-78,-87,-87,-70,-17,-12,-18,-289,-272,-287,-277,-281,-292,-379,-395,-354,-343,-550,-336,-343,-351,-351,-351,-351,-351,-351,-351,-343,-336,-336,-336,-336,-326,-539,-533,-531,-495,-533,-499,-531,-525,-502,-495,-9371,-9020,-8707,-598,-9371,-9184,-29975,-29970,-29968,-29968,-29974,-29974,-29979,-29979,-29979,-29980,-29980,-29973,-29973,-29974,-29972]} 1. e4 {[%emt 0:00:03] Kapnisis,Spyridon} e5 {[%emt 0:02:18]} 2. Nf3 {[%emt 0:00:17]} Nc6 {[%emt 0:00:18]} 3. Bb5 {[%emt 0:00:04]} a6 {[%emt 0:00:12]} 4. Ba4 {[%emt 0:00:04]} Nf6 {[%emt 0:00:06]} 5. O-O {[%emt 0:00:05]} b5 {[%emt 0:00:08]} 6. Bb3 {[%emt 0:00:05]} Bc5 {[%emt 0:00:03]} 7. a4 {[%emt 0:00:25]} Rb8 {[%emt 0:00:11]} 8. c3 {[%emt 0:00:24]} d6 {[%emt 0:00:09]} 9. d4 {[%emt 0:00:19]} Bb6 {[%emt 0:00:04]} 10. a5 {[%emt 0:00:25] C78: Spanische Partie (Archangelsk- und Möller-Variante).} Ba7 {[%emt 0:00:04]} 11. Be3 {[%emt 0:00:56]} Bg4 {[%emt 0:03:17]} 12. Nbd2 {[%emt 0:00:36] 12.Nbd2 ist besser als 12.dxe5.} exd4 {[%emt 0:05:28]} 13. cxd4 {[%emt 0:00:09]} O-O {[%emt 0:00:31]} 14. h3 {[%emt 0:00:59]} Bh5 {[%emt 0:00:46]} 15. Re1 {[%emt 0:00:57]} Nb4 {[%emt 0:09:45]} 16. Rc1 {[%emt 0:00:56]} c5 {[%emt 0:20:02]} 17. dxc5 {[%emt 0:00:56]} dxc5 {[%emt 0:05:42]} 18. e5 {[%emt 0:00:53]} Nfd5 {[%emt 0:00:52]} 19. Bxc5 {[%emt 0:00:43]} Bxc5 {[%emt 0:00:05]} 20. Rxc5 {[%emt 0:00:04]} Nf4 {[%emt 0:01:41]} 21. e6 {[%emt 0:00:42]} fxe6 {[%emt 0:07:46]} 22. Rxe6 {[%emt 0:01:26]} (22. Bxe6+ Kh8 23. Rf5 (23. Bf5 Bxf3 24. Nxf3 Nbd3 $17) 23... Nbd3 24. Rxf8+ Qxf8 $11) 22... Kh8 $1 {[%emt 0:05:08]} (22... Qxa5 $2 23. Rxa6+ Kh8 24. Rxa5 $18) (22... Nxe6 $2 23. Rxh5 g6 24. Re5 $18 (24. Bxe6+ Kg7 $18)) 23. Re4 {[%emt 0:02:47]} (23. Ree5 Bxf3 24. Nxf3 Qxd1+ 25. Bxd1 Nbd3 $17) 23... Qd6 {[%emt 0:07:43]} (23... Qxa5 $2 {geht unter.} 24. Rxf4 Rxf4 25. Rxh5 $18) (23... Nbd3 $2 24. Rxh5 Nxh5 25. Rd4 Nxf2 26. Rxd8 $18) 24. Rg5 $146 {[%emt 0:01:17]} ({Predecessor:} 24. Rxh5 Nxh5 25. Rd4 Qe7 26. Re4 Qd6 27. Rd4 Qe7 28. Re4 Qd6 29. Rd4 Qe7 30. Re4 Qd6 {½-½ Kapnisis,S (2472)-Kourkoulos Arditis,S (2524) GRE-ch 70th Lamia 2021 (3.2)}) 24... Nbd3 {[%emt 0:13:47]} 25. Rxh5 {[%emt 0:13:33]} Nxh5 {[%emt 0:00:31]} 26. Rd4 $1 {[%emt 0:00:51]} Qg6 {[%emt 0:00:08]} 27. Nh4 $2 {[%emt 0:01:24]} (27. Bc2 $1 $16 {[%cal Rc2d3]} Nhf4 28. Rxf4 Rxf4 29. Ne5 Nxe5 30. Bxg6 Nxg6 31. Qe1) 27... Qh6 $1 $17 {[%emt 0:01:27]} 28. Rxd3 {[%emt 0:01:29]} Nf4 {[%emt 0:00:21]} 29. Ndf3 {[%emt 0:01:00]} Nxd3 {[%emt 0:00:44]} 30. Qxd3 {[%emt 0:00:09]} Qc1+ {[%emt 0:03:29]} ({Günstiger ist} 30... Rbd8 $1 $15 31. Qe4 Rde8 (31... Qc1+ 32. Kh2 $15)) 31. Kh2 $11 {[%emt 0:08:55]} Rbd8 {[%emt 0:00:08]} 32. Qe3 $2 {[%emt 0:03:37][%mdl 8192] [#]} (32. Qe4 $1 $11 {und Weiss muss sich keine Sorgen machen.}) 32... Qxe3 $1 $19 {[%emt 0:06:16]} 33. fxe3 {[%emt 0:00:04]} Rd3 {[%emt 0:01:24]} 34. Bc2 {[%emt 0:05:15]} Rxe3 {[%emt 0:00:39]} 35. Nd4 {[%emt 0:03:52]} Rf2 {[%emt 0:01:26]} 36. Nhf5 {[%emt 0:08:08]} Re5 {[%emt 0:03:16]} 37. Bd3 $2 {[%emt 0:09:02]} (37. Kg1 Rxc2 38. Nxc2 Rxf5 39. Nb4) 37... Rd5 {[%emt 0:00:20]} 38. Be4 {[%emt 0:01:57]} Rxd4 {[%emt 0:00:50]} 39. Nxd4 {[%emt 0:00:04] [#]} Rf4 $1 {[%emt 0:00:04]} ({Weniger gut wäre} 39... Rxb2 40. Nc6 $17) 40. Nxb5 {[%emt 0:00:36]} Rxe4 {[%emt 0:00:43]} 41. Nc7 {[%emt 0:30:25]} Ra4 {[%emt 0:04:30]} 42. Nxa6 {[%emt 0:00:00]} Rxa5 {[%emt 0:00:19]} 43. Nc7 {[%emt 0:00:00]} Rc5 {[%emt 0:00:37]} 44. Ne6 {[%emt 0:00:00]} Rb5 {[%emt 0:00:18]} 45. h4 $2 {[%emt 0:00:00]} (45. b3 {war angesagt.}) 45... Rxb2 $19 {[%emt 0:03:55]} 46. Kh3 {[%emt 0:00:00]} Kg8 {[%emt 0:00:24]} 47. Ng5 {[%emt 0:00:00]} Rb3+ {[%emt 0:00:41]} 48. Kg4 {[%emt 0:00:00]} Rb4+ {[%emt 0:00:50]} 49. Kg3 {[%emt 0:00:00]} h6 {[%emt 0:02:18]} 50. Nf3 {[%emt 0:01:43]} (50. Nh3 $142 Kf7 51. Nf4) 50... Kf7 $19 {[%emt 0:01:24]} 51. Kh3 {[%emt 0:00:35]} Ke6 {[%emt 0:00:56]} (51... Rb3 $142 52. Kg4 Kf6) 52. Nh2 {[%emt 0:04:52]} Kf5 {[%emt 0:01:44]} 53. g3 {[%emt 0:00:22]} Rb3 {[%emt 0:01:26]} 54. Kg2 {[%emt 0:02:56]} Ke4 {[%emt 0:00:08]} 55. Kh3 {[%emt 0:00:38]} Rb2 {[%emt 0:00:55]} 56. Ng4 {[%emt 0:00:44]} h5 {[%emt 0:05:48]} 57. Nh2 {[%emt 0:00:04]} Ra2 {[%emt 0:00:23]} 58. g4 {[%emt 0:00:54]} hxg4+ {[%emt 0:00:37]} 59. Nxg4 {[%emt 0:00:10]} Kf4 {[%emt 0:00:27]} 60. h5 {[%emt 0:00:53]} 0-1

[Event "40th Cappelle Open 2024"]
[Site "Cappelle-la-Grande"]
[Date "2024.03.07"]
[Round "8.2"]
[White "Can, Emre"]
[Black "Puranik, Abhimanyu"]
[Result "1/2-1/2"]
[ECO "B22"]
[WhiteElo "2551"]
[BlackElo "2618"]
[Annotator "TA"]
[PlyCount "238"]
[EventDate "2024.03.02"]
[EventType "swiss"]
[EventCountry "FRA"]
[SourceTitle "playchess.com"]
[Source "ChessBase"]
[SourceQuality "1"]
[TimeControl "40/5400+30:1800+30"]

{[%evp 14,238,29,40,36,28,31,28,56,25,56,21,45,24,29,23,37,0,22,0,0,0,8,0,0,0,2,0,8,10,17,0,0,0,0,0,0,0,16,17,14,14,33,18,18,26,26,18,18,17,25,25,26,26,26,26,26,26,241,0,65,65,93,94,100,100,100,100,104,107,108,101,108,108,107,102,102,102,102,102,175,204,209,34,34,34,45,34,34,34,51,45,60,4,53,60,70,68,68,68,68,68,75,75,75,75,75,75,75,75,75,75,75,25,25,0,0,0,0,0,0,0,0,0,25,18,25,25,25,25,18,25,27,25,32,0,33,-54,-54,-54,-54,-54,-47,-47,-47,-47,-47,-47,-47,-53,-37,-37,-37,-37,0,0,0,0,0,0,0,0,0,0,0,0,0,0,0,0,0,0,0,0,0,0,0,0,0,0,0,0,0,0,0,0,0,0,0,0,0,0,0,0,0,0,0,0,0,0,0,0,0,0,0,0,0,0,0,0,0,0,0,0,0,0,0,0,0,0,0,0,0,0,0,-54,0]} 1. e4 {[%emt 0:00:05]} c5 {[%emt 0:00:23]} 2. Nf3 {[%emt 0:00:39]} Nc6 {[%emt 0:00:13]} 3. c3 {[%emt 0:00:53]} d5 {[%emt 0:05:36]} 4. exd5 {[%emt 0:00:43]} Qxd5 {[%emt 0:00:03]} 5. d4 {[%emt 0:00:15]} e6 {[%emt 0:01:05]} 6. Bd3 {[%emt 0:00:08]} Nf6 {[%emt 0:01:12]} 7. O-O {[%emt 0:00:53]} Be7 {[%emt 0:01:36]} 8. dxc5 {[%emt 0:01:29]} Qxc5 {[%emt 0:02:52]} 9. Nbd2 {[%emt 0:00:43]} O-O {[%emt 0:06:09]} 10. Ne4 {[%emt 0:01:55]} Nxe4 {[%emt 0:03:05] Weiß hat minimalen Vorteil.} 11. Bxe4 {[%emt 0:00:24]} Rd8 {[%emt 0:00:10]} 12. Qc2 {[%emt 0:02:09]} h6 {[%emt 0:00:04]} 13. Be3 {[%emt 0:11:45]} Qa5 {[%emt 0:00:45]} 14. Rfd1 {[%emt 0:01:00]} Bd7 {[%emt 0:01:53]} 15. Nd4 {[%emt 0:08:56]} Be8 {[%emt 0:21:11]} 16. Nxc6 {[%emt 0:04:07]} Bxc6 {[%emt 0:00:07]} 17. Bxc6 {[%emt 0:00:33]} bxc6 {[%emt 0:00:03]} 18. a3 {[%emt 0:00:44]} c5 {[%emt 0:13:21]} 19. b4 {[%emt 0:06:32]} Qa6 {[%emt 0:02:43]} (19... Rxd1+ 20. Qxd1 Qa6 21. Qd7 (21. bxc5 Rc8 $11) (21. Bxc5 Bxc5 22. bxc5 Qc6 $11)) 20. g3 {[%emt 0:15:55]} Qc4 {[%emt 0:10:25] Gegen Qe4 gerichtet.} 21. Qa4 {[%emt 0:00:31]} a6 {[%emt 0:06:55]} (21... Qxc3 22. bxc5 Rxd1+ (22... Bxc5 $2 23. Rdc1 $18) 23. Rxd1 $16) 22. Rd7 {[%emt 0:10:18]} Bg5 {[%emt 0:01:30]} (22... Qxc3 $2 23. Rc1 Qf6 24. bxc5 $18 (24. Bxc5 Rxd7 25. Qxd7 Bxc5 $11)) 23. Bxg5 {[%emt 0:13:23]} hxg5 {[%emt 0:00:21]} 24. Rad1 {[%emt 0:00:52]} Rxd7 {[%emt 0:02:28]} 25. Qxd7 {[%emt 0:02:22]} cxb4 {[%emt 0:04:34]} 26. cxb4 $11 {[%emt 0:00:32][%mdl 4096] Endspiel. KQR-KQR} Rc8 {[%emt 0:02:49]} 27. h3 {[%emt 0:00:10]} g6 {[%emt 0:02:15]} 28. Qe7 {[%emt 0:03:26]} Qb3 {[%emt 0:01:51][%csl LRa3,LRd1]} 29. Rd8+ {[%emt 0:02:36]} Rxd8 {[%emt 0:00:04]} 30. Qxd8+ {[%emt 0:00:07] KQ-KQ} Kg7 {[%emt 0:03:21]} 31. Qa5 {[%emt 0:00:40]} Qb1+ {[%emt 0:00:18]} 32. Kh2 {[%emt 0:00:23]} Qc2 {[%emt 0:00:49]} 33. Qe5+ {[%emt 0:00:34]} (33. Qxg5 Qxf2+ 34. Kh1 Qf3+ 35. Kh2 Qxa3 36. Qe5+ Kg8 $17) 33... Kg8 {[%emt 0:00:49]} 34. Qe3 {[%emt 0:01:01]} (34. Qxg5 Qxf2+ 35. Kh1 Qd4 $17) 34... e5 {[%emt 0:02:18]} 35. Kg2 {[%emt 0:02:06]} (35. Qxg5 Qxf2+ 36. Kh1 Qf3+ 37. Kh2 Qe2+ (37... Qxa3 38. Qxe5 Qxb4 39. Qe8+ Kg7 40. h4 $17) 38. Kg1 Qd1+ 39. Kf2 Qc2+ 40. Ke1 Qc3+ 41. Kf2 Qb2+ (41... Qxa3 $2 42. Qd8+ Kg7 43. Qd2 $17) 42. Kg1 Qxa3 43. Qxe5 Qxb4 $17) 35... Qb2 $2 {[%emt 0:01:48]} (35... Qa4 $11 {und Schwarz steht sicher.}) 36. g4 $2 {[%emt 0:02:21]} ({Nicht} 36. Qxg5 Qxa3 37. Qd2 Qa4 $11) ({Weiss braucht} 36. Qd3 $1 $18) 36... Qa2 {[%emt 0:01:29]} (36... e4 $1 $11) 37. Qd3 $1 $14 {[%emt 0:01:21]} (37. Qxg5 Qxa3 38. Qd8+ Kg7 $11) 37... Qe6 {[%emt 0:01:35]} 38. Qd8+ {[%emt 0:00:42]} Kg7 {[%emt 0:00:24]} 39. Qxg5 {[%emt 0:00:17]} Qc6+ {[%emt 0:00:22]} 40. Kh2 {[%emt 0:01:06]} Qd6 {[%emt 0:00:34]} 41. Qe3 {[%emt 0:31:00]} e4+ {[%emt 0:03:09]} 42. Qg3 {[%emt 0:00:00]} Qd4 {[%emt 0:02:36]} 43. Kg2 {[%emt 0:00:00]} Qd5 {[%emt 0:04:51]} 44. Qc3+ {[%emt 0:00:00]} Kh7 {[%emt 0:00:20] Droht stark ...e3+.} 45. Qc5 {[%emt 0:00:00]} Qd3 {[%emt 0:00:44]} 46. Qe3 {[%emt 0:00:00]} Qc2 {[%emt 0:00:41] [#]} (46... Qd5 $16 {war angesagt.}) 47. h4 $1 $18 {[%emt 0:00:00]} Qc6 {[%emt 0:00:18] [#]} 48. g5 $2 {[%emt 0:00:00]} ({Günstiger ist} 48. h5 $1 $18) 48... Kg8 $14 {[%emt 0:00:45]} 49. Qc5 {[%emt 0:00:00]} Qd7 {[%emt 0:00:43]} 50. Qe5 {[%emt 0:00:00]} Qd3 {[%emt 0:01:25]} 51. Qb8+ {[%emt 0:00:00]} Kg7 {[%emt 0:01:06]} 52. Qg3 $1 {[%emt 0:00:00]} Qc4 {[%emt 0:02:09]} 53. Qd6 {[%emt 0:00:00]} (53. Qe5+ $14 Kg8 54. Qg3) 53... Qe2 {[%emt 0:01:21]} (53... Qc3 $11) 54. Qf4 {[%emt 0:00:00]} Qc4 {[%emt 0:00:53]} 55. Qd2 {[%emt 0:02:03]} Kg8 {[%emt 0:04:07]} 56. Qd8+ {[%emt 0:00:38]} Kg7 {[%emt 0:00:11]} 57. Qb6 {[%emt 0:00:38][%cal Oh4h5]} Qe2 {[%emt 0:01:19]} 58. Qe3 {[%emt 0:01:25]} Qg4+ {[%emt 0:02:14]} 59. Qg3 {[%emt 0:00:09]} Qe2 {[%emt 0:00:03]} 60. Qc3+ {[%emt 0:02:23]} Kg8 {[%emt 0:00:23]} 61. Kg3 {[%emt 0:00:05]} Qb5 {[%emt 0:00:52]} 62. Qc8+ {[%emt 0:01:19]} Kg7 {[%emt 0:00:28]} 63. Kf4 {[%emt 0:00:52]} (63. Qc5 $16 {Und jetzt Qxb5 wäre schön.} Qd3+ 64. Qe3 Qd6+ 65. Kg2) 63... Qd3 $11 {[%emt 0:00:25]} 64. Qc5 {[%emt 0:00:17] Aktives Gegenspiel!} Qxa3 {[%emt 0:00:37]} 65. Kxe4 {[%emt 0:00:14]} Qh3 {[%emt 0:03:03]} 66. Qd4+ {[%emt 0:01:19]} Kg8 {[%emt 0:01:07]} 67. Kd5 {[%emt 0:01:01]} Qd7+ {[%emt 0:00:24]} 68. Kc4 {[%emt 0:00:06]} Qa4 {[%emt 0:00:15]} 69. Qd8+ {[%emt 0:01:13]} Kg7 {[%emt 0:00:16]} 70. Qb6 {[%emt 0:00:51]} Qa2+ {[%emt 0:00:23]} 71. Kc3 {[%emt 0:00:27]} Qa1+ {[%emt 0:00:01]} 72. Kd3 {[%emt 0:00:16] Droht Qd4+ und aus.} Qa2 {[%emt 0:01:28]} 73. Qf6+ {[%emt 0:03:36]} Kg8 {[%emt 0:00:06]} 74. Kd4 {[%emt 0:00:35]} Qe2 {[%emt 0:00:39]} 75. Kc5 {[%emt 0:00:49]} ({Vorzuziehen ist} 75. Qf4 $14) 75... Qb5+ $15 {[%emt 0:00:05]} 76. Kd4 $1 {[%emt 0:00:51]} Qxb4+ {[%emt 0:00:04]} 77. Kd3 {[%emt 0:00:08]} Qxh4 {[%emt 0:01:55]} 78. Qxa6 {[%emt 0:00:31]} Qxg5 {[%emt 0:00:33]} 79. Ke2 {[%emt 0:00:20]} Kg7 {[%emt 0:00:10]} 80. Kf1 {[%emt 0:00:21]} Qe5 {[%emt 0:00:09]} 81. Qb7 {[%emt 0:00:21]} g5 {[%emt 0:00:14]} 82. Qc8 {[%emt 0:00:35]} Qd5 {[%emt 0:01:50]} 83. Kg1 {[%emt 0:00:18]} f5 {[%emt 0:00:33]} 84. Qc3+ {[%emt 0:01:11]} Kg6 {[%emt 0:00:03]} 85. f3 {[%emt 0:00:14]} Qd8 {[%emt 0:02:13]} 86. Kg2 {[%emt 0:00:35]} Qe7 {[%emt 0:01:29]} 87. Qc4 {[%emt 0:00:16]} Kh5 {[%emt 0:00:13]} 88. Qc2 {[%emt 0:01:09]} Qe5 {[%emt 0:00:22]} 89. Qa2 {[%emt 0:00:14]} Qc7 {[%emt 0:01:35]} 90. Qa4 {[%emt 0:00:22]} Qe7 {[%emt 0:00:26]} 91. Qc2 {[%emt 0:00:30] Wehrt Qe2+ ab} Qe6 {[%emt 0:00:20]} 92. Qb2 {[%emt 0:00:17]} Kg6 {[%emt 0:00:29]} 93. Qd2 {[%emt 0:00:59]} Qc6 {[%emt 0:00:14]} 94. Kg3 {[%emt 0:00:34]} f4+ {[%emt 0:00:39]} 95. Kg2 {[%emt 0:00:23]} Qc5 {[%emt 0:00:03]} 96. Qd3+ {[%emt 0:00:22]} Kf6 {[%emt 0:00:06]} 97. Qd8+ {[%emt 0:00:14]} Ke6 {[%emt 0:00:04]} 98. Qg8+ {[%emt 0:00:15]} Kd6 {[%emt 0:00:08]} 99. Qg6+ {[%emt 0:00:44]} Kc7 {[%emt 0:00:07]} 100. Qf7+ {[%emt 0:00:48]} Kc6 {[%emt 0:00:09]} 101. Qe6+ {[%emt 0:00:20]} Kb5 {[%emt 0:00:10]} 102. Qb3+ $1 {[%emt 0:00:09]} Ka5 {[%emt 0:00:06]} 103. Qa2+ {[%emt 0:00:15]} Kb4 {[%emt 0:00:05]} 104. Qb2+ {[%emt 0:00:32]} Kc4 {[%emt 0:00:03]} 105. Qc2+ {[%emt 0:00:41]} Kd4 {[%emt 0:00:09]} 106. Qf2+ {[%emt 0:00:14]} Kd5 {[%emt 0:00:05]} 107. Qd2+ {[%emt 0:00:48]} Ke5 {[%emt 0:00:05]} 108. Qb2+ {[%emt 0:00:46]} Qd4 {[%emt 0:00:26]} 109. Qb5+ {[%emt 0:00:13]} Qd5 {[%emt 0:00:06]} 110. Qb2+ {[%emt 0:00:19]} Kf5 {[%emt 0:00:45]} 111. Qb1+ {[%emt 0:00:20]} Kf6 {[%emt 0:00:02]} 112. Qa1+ {[%emt 0:00:41]} Kg6 {[%emt 0:00:05]} 113. Qb1+ {[%emt 0:00:09]} Kh6 {[%emt 0:00:05] ...g4 wäre nun fies.} 114. Qh1+ $1 {[%emt 0:00:08]} Kg6 {[%emt 0:00:09] ( -> ...g4)} 115. Qb1+ {[%emt 0:00:06]} Qf5 {[%emt 0:00:05]} 116. Qd1 {[%emt 0:01:12]} Qb5 {[%emt 0:00:44]} 117. Qc2+ {[%emt 0:00:31]} Kh6 {[%emt 0:00:03]} 118. Qa2 {[%emt 0:00:54]} Qc6 {[%emt 0:01:20] ...g4 ist eine echte Drohung.} 119. Qb2 {[%emt 0:00:13]} (119. Qf7 $11) 119... Kg6 {[%emt 0:00:46] Gewichteter Fehlerwert: Weiß=0.16 (sehr präzise) /Schwarz=0.16 (sehr präzise) .  Verlustzug:     	---       	Schwarz=1     Gewinn verpasst:   	Weiß=2     	---        Fehler:       	Weiß=4     	Schwarz=4     Ungenau:       	Weiß=4     	Schwarz=4     OK:         	Weiß=41    	Schwarz=35    Bester:       	Weiß=4     	Schwarz=6     Stark:        	Weiß=6     	---} (119... Qe6 $1 $15) 1/2-1/2

[Event "40th Cappelle Open 2024"]
[Site "Cappelle-la-Grande"]
[Date "2024.03.07"]
[Round "8.3"]
[White "Degraeve, Jean-Marc"]
[Black "Idani, Pouya"]
[Result "1/2-1/2"]
[ECO "B22"]
[WhiteElo "2455"]
[BlackElo "2609"]
[Annotator "TA"]
[PlyCount "93"]
[EventDate "2024.03.02"]
[EventType "swiss"]
[EventCountry "FRA"]
[SourceTitle "playchess.com"]
[Source "ChessBase"]
[SourceQuality "1"]
[TimeControl "40/5400+30:1800+30"]

{[%evp 15,93,0,0,0,0,0,2,0,0,0,15,0,0,0,9,0,0,0,0,0,0,0,0,-16,9,0,0,0,8,-25,-25,-25,-22,-23,-36,-28,-31,-36,-8,-8,-8,-9,-8,-10,0,0,0,0,-8,-7,0,0,0,-8,-8,-8,0,0,0,0,0,-8,-8,-8,0,0,0,0,0,0,0,0,0,0,0,0,0,0,0,0]} 1. e4 {[%emt 0:00:05][%cal Be2e4,Be4e5][%mdl 32]} c5 {[%emt 0:00:05]} 2. c3 {[%emt 0:00:12]} Nf6 {[%emt 0:00:10][%cal Bg8f6,Bf6d5,Bd5b4][%mdl 32]} 3. e5 {[%emt 0:00:06]} Nd5 {[%emt 0:00:07]} 4. Nf3 {[%emt 0:00:07]} d6 {[%emt 0:00:06]} 5. d4 {[%emt 0:00:05]} cxd4 {[%emt 0:00:06]} 6. cxd4 {[%emt 0:00:06]} Nc6 {[%emt 0:00:10]} 7. Bc4 {[%emt 0:00:07]} dxe5 {[%emt 0:00:46]} 8. dxe5 {[%emt 0:01:02]} Ndb4 {[%emt 0:00:26]} 9. O-O {[%emt 0:16:44]} Qxd1 {[%emt 0:00:17]} 10. Rxd1 {[%emt 0:00:01]} Bg4 {[%emt 0:00:07] [#] ...Nc2 would now be deadly.} 11. Nc3 {[%emt 0:04:33]} e6 {[%emt 0:00:05]} 12. Be2 {[%emt 0:00:45]} h6 {[%emt 0:02:18]} 13. Bf4 {[%emt 0:01:46]} g5 {[%emt 0:16:33]} 14. Bg3 {[%emt 0:02:23]} Bg7 {[%emt 0:01:23]} 15. a3 {[%emt 0:11:18]} Nc2 {[%emt 0:07:35]} 16. Rac1 {[%emt 0:04:40]} Bxf3 $1 {[%emt 0:00:06]} 17. Bxf3 {[%emt 0:02:10]} N2d4 {[%emt 0:00:06]} 18. Bxc6+ {[%emt 0:19:07]} Nxc6 {[%emt 0:00:13]} 19. Ne4 {[%emt 0:00:02]} Ke7 {[%emt 0:03:19][%cal Oh8d8]} 20. Nd6 {[%emt 0:07:16]} Rhd8 {[%emt 0:00:19]} 21. b4 {[%emt 0:02:05]} Bxe5 {[%emt 0:21:17]} 22. Bxe5 {[%emt 0:04:23]} Nxe5 {[%emt 0:00:10]} 23. Nxb7 {[%emt 0:00:06]} Rxd1+ {[%emt 0:00:50]} 24. Rxd1 $11 {[%emt 0:00:01][%mdl 4096] Endgame. KRN-KRN} Nc4 {[%emt 0:01:22]} 25. Rd3 {[%emt 0:06:58]} Rb8 {[%emt 0:04:35]} 26. Nc5 {[%emt 0:00:51]} a5 {[%emt 0:05:49]} 27. Rd7+ {[%emt 0:07:52] The position is equal.} Ke8 {[%emt 0:00:23]} 28. Rb7 $1 {[%emt 0:00:02]} Rxb7 {[%emt 0:05:54]} 29. Nxb7 {[%emt 0:00:02] KN-KN} a4 {[%emt 0:03:39]} 30. Nc5 {[%emt 0:00:25]} Nxa3 {[%emt 0:00:05]} 31. Nxa4 {[%emt 0:00:05]} Kd7 {[%emt 0:01:09]} 32. Kf1 {[%emt 0:04:24]} Kc6 {[%emt 0:02:02]} 33. Nc5 {[%emt 0:02:40]} Kd5 {[%emt 0:07:38]} 34. Ke2 {[%emt 0:01:18]} Nc2 {[%emt 0:00:07]} 35. Nd3 {[%emt 0:00:30]} e5 {[%emt 0:01:01]} 36. Kd2 {[%emt 0:00:06]} Nd4 {[%emt 0:00:43]} 37. f3 {[%emt 0:00:50]} f5 {[%emt 0:00:22]} 38. Ke3 {[%emt 0:03:05]} h5 {[%emt 0:04:52]} 39. Kd2 {[%emt 0:00:11]} h4 {[%emt 0:07:43][%cal Oh4h3] [#] White must now prevent ...h3!} 40. Nf2 {[%emt 0:00:32]} Kc4 {[%emt 0:02:47]} 41. Ke3 {[%emt 0:03:31]} Kd5 {[%emt 0:11:35]} 42. b5 {[%emt 0:04:06]} Nxb5 {[%emt 0:01:56]} 43. Nh3 $1 {[%emt 0:01:01]} f4+ {[%emt 0:00:06]} 44. Kf2 {[%emt 0:00:30]} g4 {[%emt 0:00:07]} 45. fxg4 {[%emt 0:00:05]} Nd4 {[%emt 0:05:25]} 46. g3 {[%emt 0:00:34]} hxg3+ {[%emt 0:01:17]} 47. hxg3 {[%emt 0:00:01] Weighted Error Value: White=0.03 (flawless) /Black=0.03 (flawless) .  Inaccurate:     	White=1     	Black=1      OK:         	White=18    	Black=16     Best:        	White=2     	---        Strong:       	White=2     	Black=1} 1/2-1/2

[Event "40th Cappelle Open 2024"]
[Site "Cappelle-la-Grande"]
[Date "2024.03.07"]
[Round "8.4"]
[White "Nikolov, Momchil"]
[Black "Sasikiran, Krishnan"]
[Result "1/2-1/2"]
[ECO "E32"]
[WhiteElo "2453"]
[BlackElo "2578"]
[Annotator "TA"]
[PlyCount "60"]
[EventDate "2024.03.02"]
[EventType "swiss"]
[EventCountry "FRA"]
[SourceTitle "playchess.com"]
[Source "ChessBase"]
[SourceQuality "1"]
[TimeControl "40/5400+30:1800+30"]

{[%evp 9,60,19,6,0,31,10,34,31,24,-22,43,58,47,29,30,31,37,41,56,48,71,72,72,68,83,56,85,29,31,24,31,10,12,20,12,0,0,0,0,0,0,0,8,12,9,12,12,11,41,44,35,8,11]} 1. d4 {[%emt 0:00:06]} Nf6 {[%emt 0:00:20]} 2. c4 {[%emt 0:00:04]} e6 {[%emt 0:00:11]} 3. Nc3 {[%emt 0:00:08]} Bb4 {[%emt 0:00:09]} 4. Qc2 {[%emt 0:00:10]} d6 {[%emt 0:00:13]} 5. Bd2 {[%emt 0:03:12]} c5 {[%emt 0:03:41]} 6. dxc5 {[%emt 0:03:20]} Bxc5 {[%emt 0:08:02]} 7. e3 {[%emt 0:05:41]} Nc6 {[%emt 0:02:17]} 8. a3 {[%emt 0:05:21] Weiß steht etwas besser.} d5 {[%emt 0:02:05]} 9. b4 {[%emt 0:00:25]} (9. Rd1 $142) 9... d4 {[%emt 0:06:14]} (9... Bd6 $11) 10. bxc5 $14 {[%emt 0:03:38]} dxc3 {[%emt 0:00:32]} 11. Bxc3 {[%emt 0:00:11]} e5 {[%emt 0:03:38]} 12. Nf3 {[%emt 0:05:34]} Qe7 {[%emt 0:03:46][%cal Of6d7]} 13. Nd2 {[%emt 0:04:12]} Nd4 {[%emt 0:20:44]} 14. Qb2 {[%emt 0:02:23]} (14. exd4 exd4+ 15. Be2 dxc3 $11) 14... Bf5 {[%emt 0:04:05]} 15. Bxd4 {[%emt 0:03:20]} (15. exd4 $2 exd4+ 16. Be2 dxc3 17. Qxc3 O-O-O $19 (17... Qxc5 18. Qb4 $11)) 15... exd4 {[%emt 0:00:26]} 16. Qxd4 {[%emt 0:00:22]} Rd8 {[%emt 0:02:07]} 17. Qc3 {[%emt 0:01:00]} Be4 {[%emt 0:03:21]} 18. f3 {[%emt 0:06:29]} ({Günstiger ist} 18. Be2 $16 {Zielt auf Nxe4 ab.} O-O (18... Bxg2 19. Rg1 $16) 19. O-O) 18... Bg6 $11 {[%emt 0:02:25][%cal Oe8g8]} 19. Be2 {[%emt 0:08:36]} O-O $1 {[%emt 0:00:59][%cal Of8e8]} 20. O-O {[%emt 0:01:34]} Qxc5 {[%emt 0:13:29]} ({Doch nicht} 20... Bd3 21. Rf2 Bxe2 (21... Qxe3 $2 22. Rd1 $18) 22. Rxe2 $14) 21. Nb3 {[%emt 0:17:51]} Nd5 $1 {[%emt 0:01:07][%cal Bf6d5,Bd5e3,Be3c2][%mdl 32]} 22. Qxg7+ {[%emt 0:04:53]} (22. cxd5 $2 {verliert.} Qxc3 23. e4 Qxb3 $19) 22... Kxg7 {[%emt 0:00:50]} 23. Nxc5 {[%emt 0:00:06]} Nxe3 {[%emt 0:02:38]} 24. Rf2 {[%emt 0:01:52]} b6 {[%emt 0:03:00]} 25. Na6 {[%emt 0:00:45]} Rfe8 {[%emt 0:02:44]} 26. c5 {[%emt 0:03:18]} bxc5 {[%emt 0:05:04]} 27. Nxc5 {[%emt 0:00:41]} Re5 {[%emt 0:00:56]} 28. Rc1 {[%emt 0:06:37]} Nc2 {[%emt 0:04:02] [#]} 29. Ne4 {[%emt 0:02:38]} Nxa3 {[%emt 0:00:44][%cal Oa3b5]} 30. Bf1 {[%emt 0:00:53]} Nb5 {[%emt 0:00:55] Gewichteter Fehlerwert: Weiß=0.11 (sehr präzise) /Schwarz=0.11 (sehr präzise) .  Fehler:       	Weiß=2     	Schwarz=1     Ungenau:       	Weiß=2     	Schwarz=3     OK:         	Weiß=9     	Schwarz=12    Stark:        	---       	Schwarz=2} 1/2-1/2